[Event "Titled Tuesday Blitz April 19 Late 2022"]
[White "Potapova, Margarita"]
[Black "Ferreira, Vitor Hugo Vieira"]
[WhiteFideId "14126869"]
[BlackFideId "2119765"]
[WhiteElo "2216"]
[BlackElo "2165"]
[Result "1-0"]
[Round "07"]
[TimeControl "180+1"]
[Date "2022.04.19"]
[WhiteClock "0:00:06"]
[BlackClock "0:00:19"]

1. e4 {[%clk 0:03:00]}  c5 {[%clk 0:02:59]} 2. Nf3 {[%clk 0:02:59]}  d6 {[%clk 0:02:59]} 3. d4 {[%clk 0:02:59]}  cxd4 {[%clk 0:02:59]} 4. Nxd4 {[%clk 0:03:00]}  Nf6 {[%clk 0:02:59]} 5. Nc3 {[%clk 0:03:01]}  a6 {[%clk 0:02:59]} 6. Be3 {[%clk 0:03:00]}  e5 {[%clk 0:02:59]} 7. Nb3 {[%clk 0:02:59]}  Be6 {[%clk 0:03:00]} 8. f3 {[%clk 0:02:59]}  h5 {[%clk 0:02:58]} 9. Nd5 {[%clk 0:02:53]}  Bxd5 {[%clk 0:02:57]} 10. exd5 {[%clk 0:02:54]}  g6 {[%clk 0:02:56]} 11. Na5 {[%clk 0:02:53]}  Qc7 {[%clk 0:02:53]} 12. Be2 {[%clk 0:02:50]}  b6 {[%clk 0:02:52]} 13. Nc4 {[%clk 0:02:35]}  Nbd7 {[%clk 0:02:52]} 14. a4 {[%clk 0:02:31]}  a5 {[%clk 0:02:51]} 15. Na3 {[%clk 0:02:23]}  Nc5 {[%clk 0:02:49]} 16. Bb5+ {[%clk 0:02:20]}  Nfd7 {[%clk 0:02:46]} 17. Bc6 {[%clk 0:02:20]}  Rc8 {[%clk 0:02:41]} 18. Nb5 {[%clk 0:02:20]}  Qd8 {[%clk 0:02:35]} 19. O-O {[%clk 0:02:12]}  Be7 {[%clk 0:02:36]} 20. f4 {[%clk 0:01:57]}  O-O {[%clk 0:02:32]} 21. f5 {[%clk 0:01:57]}  Bg5 {[%clk 0:02:25]} 22. Bxg5 {[%clk 0:01:50]}  Qxg5 {[%clk 0:02:24]} 23. Nxd6 {[%clk 0:01:50]}  Qe3+ {[%clk 0:02:24]} 24. Kh1 {[%clk 0:01:50]}  Rcd8 {[%clk 0:02:16]} 25. Ra3 {[%clk 0:01:27]}  Qd4 {[%clk 0:02:03]} 26. Qc1 {[%clk 0:01:15]}  Nb8 {[%clk 0:01:59]} 27. f6 {[%clk 0:01:11]}  Kh7 {[%clk 0:01:53]} 28. Nb5 {[%clk 0:00:57]}  Qh4 {[%clk 0:01:45]} 29. Rh3 {[%clk 0:00:55]}  Qg4 {[%clk 0:01:45]} 30. Rg3 {[%clk 0:00:54]}  Qh4 {[%clk 0:01:45]} 31. Qe3 {[%clk 0:00:41]}  Nxc6 {[%clk 0:01:41]} 32. dxc6 {[%clk 0:00:42]}  Ne4 {[%clk 0:01:26]} 33. c7 {[%clk 0:00:17]}  Nxg3+ {[%clk 0:01:01]} 34. Qxg3 {[%clk 0:00:18]}  Qxg3 {[%clk 0:01:02]} 35. hxg3 {[%clk 0:00:19]}  Rc8 {[%clk 0:01:02]} 36. Rd1 {[%clk 0:00:17]}  Rfe8 {[%clk 0:00:58]} 37. Rd7 {[%clk 0:00:16]}  g5 {[%clk 0:00:56]} 38. Nd6 {[%clk 0:00:14]}  Rxc7 {[%clk 0:00:51]} 39. Rxc7 {[%clk 0:00:15]}  Re6 {[%clk 0:00:51]} 40. Ne4 {[%clk 0:00:13]}  Kg6 {[%clk 0:00:47]} 41. Kg1 {[%clk 0:00:08]}  Kf5 {[%clk 0:00:42]} 42. Rc4 {[%clk 0:00:08]}  Re8 {[%clk 0:00:23]} 43. Nd6+ {[%clk 0:00:08]}  Kxf6 {[%clk 0:00:23]} 44. Nxe8+ {[%clk 0:00:09]}  Ke7 {[%clk 0:00:24]} 45. Nc7 {[%clk 0:00:09]}  Kd7 {[%clk 0:00:24]} 46. Nb5 {[%clk 0:00:08]}  f5 {[%clk 0:00:25]} 47. Rc7+ {[%clk 0:00:09]}  Ke6 {[%clk 0:00:25]} 48. Kf2 {[%clk 0:00:09]}  e4 {[%clk 0:00:26]} 49. Rh7 {[%clk 0:00:10]}  f4 {[%clk 0:00:27]} 50. Rxh5 {[%clk 0:00:10]}  Kf5 {[%clk 0:00:27]} 51. gxf4 {[%clk 0:00:10]}  Kg4 {[%clk 0:00:28]} 52. Rxg5+ {[%clk 0:00:10]}  Kxf4 {[%clk 0:00:28]} 53. Rg8 {[%clk 0:00:09]}  e3+ {[%clk 0:00:29]} 54. Ke2 {[%clk 0:00:09]}  Ke4 {[%clk 0:00:29]} 55. g4 {[%clk 0:00:10]}  Kf4 {[%clk 0:00:29]} 56. g5 {[%clk 0:00:10]}  Kg3 {[%clk 0:00:29]} 57. Kxe3 {[%clk 0:00:09]}  Kg4 {[%clk 0:00:28]} 58. Ke4 {[%clk 0:00:09]}  Kh5 {[%clk 0:00:29]} 59. g6 {[%clk 0:00:08]}  Kh6 {[%clk 0:00:29]} 60. Kf5 {[%clk 0:00:05]}  Kh5 {[%clk 0:00:19]} 61. Rh8# {[%clk 0:00:06]} 1-0


[Site "https://www.chess.com"]

[Event "Titled Tuesday Blitz April 19 Late 2022"]
[White "Rasulov, Vugar"]
[Black "Herrera Reyes, Jose Antonio"]
[WhiteFideId "13402390"]
[BlackFideId "2274914"]
[WhiteElo "2560"]
[BlackElo "2361"]
[Result "0-1"]
[Round "07"]
[TimeControl "180+1"]
[Date "2022.04.19"]
[WhiteClock "0:00:41"]
[BlackClock "0:00:57"]

1. d4 {[%clk 0:03:00]}  Nf6 {[%clk 0:02:59]} 2. c4 {[%clk 0:03:01]}  c5 {[%clk 0:02:59]} 3. d5 {[%clk 0:03:01]}  b5 {[%clk 0:02:59]} 4. Qc2 {[%clk 0:02:59]}  g6 {[%clk 0:02:58]} 5. e4 {[%clk 0:03:00]}  Bg7 {[%clk 0:02:59]} 6. e5 {[%clk 0:02:59]}  Ng8 {[%clk 0:02:59]} 7. Nf3 {[%clk 0:02:59]}  d6 {[%clk 0:02:58]} 8. Bf4 {[%clk 0:02:57]}  Nh6 {[%clk 0:02:54]} 9. Nbd2 {[%clk 0:02:54]}  b4 {[%clk 0:02:51]} 10. Bd3 {[%clk 0:02:54]}  Nf5 {[%clk 0:02:48]} 11. O-O {[%clk 0:02:49]}  a5 {[%clk 0:02:48]} 12. Rfe1 {[%clk 0:02:48]}  O-O {[%clk 0:02:47]} 13. Re2 {[%clk 0:02:42]}  a4 {[%clk 0:02:42]} 14. Rae1 {[%clk 0:02:42]}  Na6 {[%clk 0:02:38]} 15. b3 {[%clk 0:02:39]}  axb3 {[%clk 0:02:34]} 16. axb3 {[%clk 0:02:40]}  Nc7 {[%clk 0:02:33]} 17. h3 {[%clk 0:02:35]}  dxe5 {[%clk 0:02:30]} 18. Bxe5 {[%clk 0:02:35]}  Bxe5 {[%clk 0:02:28]} 19. Rxe5 {[%clk 0:02:36]}  e6 {[%clk 0:02:27]} 20. Ne4 {[%clk 0:02:20]}  f6 {[%clk 0:02:22]} 21. Rxf5 {[%clk 0:02:07]}  gxf5 {[%clk 0:02:10]} 22. Nxc5 {[%clk 0:02:08]}  exd5 {[%clk 0:02:09]} 23. Bxf5 {[%clk 0:02:08]}  Bxf5 {[%clk 0:02:05]} 24. Qxf5 {[%clk 0:02:09]}  dxc4 {[%clk 0:02:06]} 25. bxc4 {[%clk 0:01:56]}  Ra5 {[%clk 0:02:01]} 26. Qg4+ {[%clk 0:01:40]}  Kh8 {[%clk 0:02:01]} 27. Nb3 {[%clk 0:01:41]}  Ra3 {[%clk 0:01:50]} 28. Nfd4 {[%clk 0:01:41]}  Qa8 {[%clk 0:01:43]} 29. Qh5 {[%clk 0:01:34]}  Rg8 {[%clk 0:01:41]} 30. f3 {[%clk 0:01:31]}  Qd8 {[%clk 0:01:33]} 31. Qc5 {[%clk 0:01:29]}  Ra2 {[%clk 0:01:24]} 32. g4 {[%clk 0:01:27]}  Na6 {[%clk 0:01:19]} 33. Qf5 {[%clk 0:01:24]}  Qd6 {[%clk 0:01:17]} 34. f4 {[%clk 0:01:25]}  Nc5 {[%clk 0:01:14]} 35. Nb5 {[%clk 0:00:58]}  Qc6 {[%clk 0:01:04]} 36. Re4 {[%clk 0:00:41]}  Nxe4 {[%clk 0:01:02]} 37. N3d4 {[%clk 0:00:41]}  Qxc4 {[%clk 0:00:57]} 0-1


[Site "https://www.chess.com"]

[Event "Titled Tuesday Blitz April 19 Late 2022"]
[White "Sanal, Vahap"]
[Black "Sowa, Ryan"]
[WhiteFideId "6300545"]
[BlackFideId "30901693"]
[WhiteElo "2603"]
[BlackElo "2631"]
[Result "1-0"]
[Round "07"]
[TimeControl "180+1"]
[Date "2022.04.19"]
[WhiteClock "0:01:53"]
[BlackClock "0:00:31"]

1. e4 {[%clk 0:02:59]}  e5 {[%clk 0:02:58]} 2. Nf3 {[%clk 0:02:58]}  Nc6 {[%clk 0:02:59]} 3. Bb5 {[%clk 0:02:57]}  Nf6 {[%clk 0:02:58]} 4. d3 {[%clk 0:02:56]}  Bc5 {[%clk 0:02:58]} 5. Nc3 {[%clk 0:02:53]}  d6 {[%clk 0:02:56]} 6. Be3 {[%clk 0:02:54]}  Bb6 {[%clk 0:02:51]} 7. h3 {[%clk 0:02:53]}  O-O {[%clk 0:02:49]} 8. Bxc6 {[%clk 0:02:52]}  bxc6 {[%clk 0:02:49]} 9. O-O {[%clk 0:02:52]}  h6 {[%clk 0:02:47]} 10. Nh2 {[%clk 0:02:48]}  d5 {[%clk 0:02:44]} 11. Bxb6 {[%clk 0:02:43]}  axb6 {[%clk 0:02:41]} 12. Qf3 {[%clk 0:02:39]}  Be6 {[%clk 0:02:39]} 13. Qg3 {[%clk 0:02:39]}  Qd6 {[%clk 0:02:34]} 14. a3 {[%clk 0:02:34]}  Nh5 {[%clk 0:02:28]} 15. Qf3 {[%clk 0:02:34]}  Nf4 {[%clk 0:02:28]} 16. h4 {[%clk 0:02:33]}  d4 {[%clk 0:02:21]} 17. Ne2 {[%clk 0:02:33]}  Nxe2+ {[%clk 0:02:19]} 18. Qxe2 {[%clk 0:02:33]}  c5 {[%clk 0:02:15]} 19. g4 {[%clk 0:02:25]}  b5 {[%clk 0:02:07]} 20. Kg2 {[%clk 0:02:20]}  f6 {[%clk 0:02:01]} 21. Rh1 {[%clk 0:02:18]}  c4 {[%clk 0:02:00]} 22. Nf1 {[%clk 0:02:18]}  Kf7 {[%clk 0:01:42]} 23. Ng3 {[%clk 0:02:17]}  Rh8 {[%clk 0:01:42]} 24. Qf3 {[%clk 0:02:12]}  Qd7 {[%clk 0:01:28]} 25. Nf5 {[%clk 0:02:08]}  g6 {[%clk 0:01:21]} 26. Rag1 {[%clk 0:02:00]}  gxf5 {[%clk 0:01:21]} 27. gxf5 {[%clk 0:02:00]}  Bxf5 {[%clk 0:01:15]} 28. exf5 {[%clk 0:02:00]}  Rag8+ {[%clk 0:01:01]} 29. Kf1 {[%clk 0:02:00]}  Ke7 {[%clk 0:00:54]} 30. Rg6 {[%clk 0:01:57]}  Rf8 {[%clk 0:00:52]} 31. Rg7+ {[%clk 0:01:51]}  Rf7 {[%clk 0:00:52]} 32. Rhg1 {[%clk 0:01:52]}  Rf8 {[%clk 0:00:52]} 33. R7g6 {[%clk 0:01:52]}  Rh8 {[%clk 0:00:49]} 34. Qe4 {[%clk 0:01:51]}  c6 {[%clk 0:00:45]} 35. f4 {[%clk 0:01:51]}  Qd5 {[%clk 0:00:40]} 36. fxe5 {[%clk 0:01:51]}  Qxe4 {[%clk 0:00:39]} 37. dxe4 {[%clk 0:01:50]}  fxe5 {[%clk 0:00:39]} 38. Re6+ {[%clk 0:01:50]}  Kd7 {[%clk 0:00:39]} 39. Rgg6 {[%clk 0:01:51]}  Rd8 {[%clk 0:00:35]} 40. Rd6+ {[%clk 0:01:49]}  Ke8 {[%clk 0:00:35]} 41. Rge6+ {[%clk 0:01:49]}  Re7 {[%clk 0:00:35]} 42. Rxc6 {[%clk 0:01:48]}  d3 {[%clk 0:00:35]} 43. cxd3 {[%clk 0:01:48]}  cxd3 {[%clk 0:00:36]} 44. Ke1 {[%clk 0:01:48]}  Rd4 {[%clk 0:00:33]} 45. Rxe7+ {[%clk 0:01:48]}  Kxe7 {[%clk 0:00:33]} 46. Re6+ {[%clk 0:01:49]}  Kd7 {[%clk 0:00:34]} 47. Rxe5 {[%clk 0:01:50]}  Kd6 {[%clk 0:00:28]} 48. Rd5+ {[%clk 0:01:48]}  Rxd5 {[%clk 0:00:27]} 49. exd5 {[%clk 0:01:49]}  Kxd5 {[%clk 0:00:28]} 50. b3 {[%clk 0:01:48]}  Ke5 {[%clk 0:00:28]} 51. a4 {[%clk 0:01:48]}  bxa4 {[%clk 0:00:27]} 52. bxa4 {[%clk 0:01:49]}  Kxf5 {[%clk 0:00:28]} 53. a5 {[%clk 0:01:50]}  Ke6 {[%clk 0:00:29]} 54. a6 {[%clk 0:01:50]}  Kd6 {[%clk 0:00:29]} 55. a7 {[%clk 0:01:51]}  Ke6 {[%clk 0:00:30]} 56. Kd2 {[%clk 0:01:50]}  Ke5 {[%clk 0:00:30]} 57. Kxd3 {[%clk 0:01:50]}  Ke6 {[%clk 0:00:31]} 58. a8=Q {[%clk 0:01:51]}  Kf5 {[%clk 0:00:31]} 59. Qe4+ {[%clk 0:01:50]}  Kf6 {[%clk 0:00:31]} 60. Qg2 {[%clk 0:01:50]}  Kf5 {[%clk 0:00:32]} 61. Ke3 {[%clk 0:01:50]}  Ke5 {[%clk 0:00:32]} 62. Qe4+ {[%clk 0:01:51]}  Kd6 {[%clk 0:00:32]} 63. Qf5 {[%clk 0:01:51]}  h5 {[%clk 0:00:33]} 64. Kd4 {[%clk 0:01:52]}  Kc6 {[%clk 0:00:33]} 65. Qe6+ {[%clk 0:01:52]}  Kc7 {[%clk 0:00:33]} 66. Kc5 {[%clk 0:01:52]}  Kb7 {[%clk 0:00:34]} 67. Qd7+ {[%clk 0:01:52]}  Ka8 {[%clk 0:00:34]} 68. Kb6 {[%clk 0:01:52]}  Kb8 {[%clk 0:00:31]} 69. Qe8# {[%clk 0:01:53]} 1-0


[Site "https://www.chess.com"]

[Event "Titled Tuesday Blitz April 19 Late 2022"]
[White "Sarana, Alexey"]
[Black "Andreikin, Dmitry"]
[WhiteFideId "24133795"]
[BlackFideId "4158814"]
[WhiteElo "2666"]
[BlackElo "2736"]
[Result "0-1"]
[Round "07"]
[TimeControl "180+1"]
[Date "2022.04.19"]
[WhiteClock "0:00:04"]
[BlackClock "0:00:10"]

1. d4 {[%clk 0:03:00]}  d5 {[%clk 0:02:58]} 2. c4 {[%clk 0:03:00]}  dxc4 {[%clk 0:02:59]} 3. e4 {[%clk 0:02:59]}  b5 {[%clk 0:02:59]} 4. a4 {[%clk 0:02:58]}  c6 {[%clk 0:02:59]} 5. axb5 {[%clk 0:02:56]}  cxb5 {[%clk 0:03:00]} 6. Nc3 {[%clk 0:02:44]}  Qb6 {[%clk 0:03:00]} 7. Be2 {[%clk 0:02:43]}  e6 {[%clk 0:02:56]} 8. Nh3 {[%clk 0:02:43]}  Bb4 {[%clk 0:02:55]} 9. Be3 {[%clk 0:02:40]}  a5 {[%clk 0:02:54]} 10. O-O {[%clk 0:02:10]}  Nf6 {[%clk 0:02:32]} 11. d5 {[%clk 0:01:47]}  Bc5 {[%clk 0:02:31]} 12. Bxc5 {[%clk 0:01:39]}  Qxc5 {[%clk 0:02:31]} 13. e5 {[%clk 0:01:37]}  Nxd5 {[%clk 0:02:23]} 14. Ne4 {[%clk 0:01:38]}  Qb6 {[%clk 0:02:01]} 15. Nd6+ {[%clk 0:01:38]}  Ke7 {[%clk 0:01:59]} 16. Bf3 {[%clk 0:01:34]}  Nc6 {[%clk 0:01:52]} 17. Bxd5 {[%clk 0:00:43]}  exd5 {[%clk 0:01:53]} 18. Nf4 {[%clk 0:00:39]}  Qd4 {[%clk 0:01:01]} 19. Nxd5+ {[%clk 0:00:34]}  Kf8 {[%clk 0:01:01]} 20. Qxd4 {[%clk 0:00:33]}  Nxd4 {[%clk 0:01:01]} 21. Nb6 {[%clk 0:00:33]}  Ra6 {[%clk 0:00:43]} 22. Nbxc8 {[%clk 0:00:30]}  g6 {[%clk 0:00:37]} 23. Rfd1 {[%clk 0:00:27]}  Nb3 {[%clk 0:00:36]} 24. Ra3 {[%clk 0:00:18]}  Kg7 {[%clk 0:00:37]} 25. f4 {[%clk 0:00:09]}  b4 {[%clk 0:00:29]} 26. Ra4 {[%clk 0:00:09]}  Nc5 {[%clk 0:00:28]} 27. Raa1 {[%clk 0:00:09]}  Nd3 {[%clk 0:00:23]} 28. Rd2 {[%clk 0:00:05]}  Nxf4 {[%clk 0:00:15]} 29. Ne7 {[%clk 0:00:05]}  c3 {[%clk 0:00:10]} 30. bxc3 {[%clk 0:00:05]}  bxc3 {[%clk 0:00:11]} 31. Rf2 {[%clk 0:00:06]}  g5 {[%clk 0:00:09]} 32. h4 {[%clk 0:00:05]}  h6 {[%clk 0:00:09]} 33. Nef5+ {[%clk 0:00:04]}  Kg6 {[%clk 0:00:09]} 34. g4 {[%clk 0:00:03]}  Nh3+ {[%clk 0:00:09]} 35. Kg2 {[%clk 0:00:04]}  Nxf2 {[%clk 0:00:09]} 36. h5+ {[%clk 0:00:05]}  Kh7 {[%clk 0:00:09]} 37. Kxf2 {[%clk 0:00:05]}  Rb8 {[%clk 0:00:10]} 38. Ke2 {[%clk 0:00:05]}  c2 {[%clk 0:00:09]} 39. Rc1 {[%clk 0:00:05]}  Rb2 {[%clk 0:00:10]} 40. Kd2 {[%clk 0:00:05]}  a4 {[%clk 0:00:10]} 41. Nc4 {[%clk 0:00:06]}  a3 {[%clk 0:00:10]} 42. Nfe3 {[%clk 0:00:03]}  Rb1 {[%clk 0:00:10]} 43. Nxc2 {[%clk 0:00:03]}  a2 {[%clk 0:00:11]} 44. Na1 {[%clk 0:00:03]}  Ra4 {[%clk 0:00:11]} 45. Ne3 {[%clk 0:00:03]}  Re4 {[%clk 0:00:10]} 46. Nac2 {[%clk 0:00:02]}  Rxc1 {[%clk 0:00:10]} 47. Kxc1 {[%clk 0:00:02]}  Rxe3 {[%clk 0:00:10]} 48. Nxe3 {[%clk 0:00:03]}  a1=Q+ {[%clk 0:00:10]} 49. Kd2 {[%clk 0:00:04]}  Qxe5 {[%clk 0:00:10]} 0-1


[Site "https://www.chess.com"]

[Event "Titled Tuesday Blitz April 19 Late 2022"]
[White "Sarkar, Justin"]
[Black "Skliarov, Viktor"]
[WhiteFideId "2010011"]
[BlackFideId "14106736"]
[WhiteElo "2038"]
[BlackElo "2229"]
[Result "0-1"]
[Round "07"]
[TimeControl "180+1"]
[Date "2022.04.19"]
[WhiteClock "0:00:01"]
[BlackClock "0:00:27"]

1. d4 {[%clk 0:03:00]}  Nf6 {[%clk 0:02:58]} 2. c4 {[%clk 0:02:59]}  e6 {[%clk 0:02:58]} 3. Nf3 {[%clk 0:02:55]}  b6 {[%clk 0:02:57]} 4. g3 {[%clk 0:02:54]}  Bb7 {[%clk 0:02:58]} 5. Bg2 {[%clk 0:02:54]}  Be7 {[%clk 0:02:58]} 6. O-O {[%clk 0:02:53]}  O-O {[%clk 0:02:58]} 7. Nc3 {[%clk 0:02:41]}  Ne4 {[%clk 0:02:57]} 8. Bd2 {[%clk 0:02:40]}  Nxd2 {[%clk 0:02:53]} 9. Qxd2 {[%clk 0:02:40]}  f5 {[%clk 0:02:53]} 10. Ne1 {[%clk 0:02:25]}  Bxg2 {[%clk 0:02:51]} 11. Nxg2 {[%clk 0:02:26]}  Bg5 {[%clk 0:02:33]} 12. f4 {[%clk 0:02:13]}  Bf6 {[%clk 0:02:33]} 13. e4 {[%clk 0:02:12]}  fxe4 {[%clk 0:02:27]} 14. Nxe4 {[%clk 0:02:11]}  Nc6 {[%clk 0:02:28]} 15. Nxf6+ {[%clk 0:01:57]}  Qxf6 {[%clk 0:02:27]} 16. d5 {[%clk 0:01:39]}  Qd4+ {[%clk 0:02:13]} 17. Qxd4 {[%clk 0:01:37]}  Nxd4 {[%clk 0:02:14]} 18. Rad1 {[%clk 0:01:31]}  Nf5 {[%clk 0:01:54]} 19. dxe6 {[%clk 0:01:30]}  dxe6 {[%clk 0:01:55]} 20. Rd7 {[%clk 0:01:27]}  Rf7 {[%clk 0:01:55]} 21. Rfd1 {[%clk 0:01:18]}  Nd6 {[%clk 0:01:54]} 22. Rxf7 {[%clk 0:01:17]}  Kxf7 {[%clk 0:01:55]} 23. Ne3 {[%clk 0:01:14]}  h5 {[%clk 0:01:48]} 24. Kg2 {[%clk 0:01:13]}  Re8 {[%clk 0:01:46]} 25. Kf3 {[%clk 0:01:06]}  g6 {[%clk 0:01:40]} 26. c5 {[%clk 0:00:56]}  bxc5 {[%clk 0:01:00]} 27. Rc1 {[%clk 0:00:56]}  Rb8 {[%clk 0:01:00]} 28. b3 {[%clk 0:00:47]}  Rb5 {[%clk 0:00:57]} 29. Nc4 {[%clk 0:00:41]}  Nxc4 {[%clk 0:00:53]} 30. Rxc4 {[%clk 0:00:40]}  Ra5 {[%clk 0:00:53]} 31. a4 {[%clk 0:00:38]}  Ke7 {[%clk 0:00:54]} 32. Ke4 {[%clk 0:00:35]}  Kd6 {[%clk 0:00:52]} 33. Rc3 {[%clk 0:00:35]}  Ra6 {[%clk 0:00:53]} 34. Rd3+ {[%clk 0:00:32]}  Ke7 {[%clk 0:00:53]} 35. Rc3 {[%clk 0:00:26]}  Rc6 {[%clk 0:00:45]} 36. Ke5 {[%clk 0:00:26]}  a5 {[%clk 0:00:41]} 37. h3 {[%clk 0:00:24]}  Kf7 {[%clk 0:00:41]} 38. g4 {[%clk 0:00:23]}  hxg4 {[%clk 0:00:42]} 39. hxg4 {[%clk 0:00:23]}  Ke7 {[%clk 0:00:42]} 40. Rh3 {[%clk 0:00:18]}  c4 {[%clk 0:00:41]} 41. Rh7+ {[%clk 0:00:13]}  Kf8 {[%clk 0:00:41]} 42. bxc4 {[%clk 0:00:09]}  Rxc4 {[%clk 0:00:41]} 43. Kxe6 {[%clk 0:00:06]}  Rxf4 {[%clk 0:00:41]} 44. Rxc7 {[%clk 0:00:05]}  Rxg4 {[%clk 0:00:41]} 45. Kf6 {[%clk 0:00:03]}  Ke8 {[%clk 0:00:41]} 46. Rc5 {[%clk 0:00:01]}  Rxa4 {[%clk 0:00:38]} 47. Kxg6 {[%clk 0:00:02]}  Kd7 {[%clk 0:00:39]} 48. Kf5 {[%clk 0:00:02]}  Kd6 {[%clk 0:00:39]} 49. Rc1 {[%clk 0:00:02]}  Rb4 {[%clk 0:00:36]} 50. Rc8 {[%clk 0:00:02]}  a4 {[%clk 0:00:36]} 51. Ra8 {[%clk 0:00:02]}  Kd5 {[%clk 0:00:34]} 52. Rd8+ {[%clk 0:00:01]}  Kc4 {[%clk 0:00:33]} 53. Ke4 {[%clk 0:00:01]}  Kc3+ {[%clk 0:00:33]} 54. Ke3 {[%clk 0:00:01]}  a3 {[%clk 0:00:34]} 55. Ra8 {[%clk 0:00:01]}  Rb3 {[%clk 0:00:33]} 56. Ke2 {[%clk 0:00:02]}  Kc2 {[%clk 0:00:33]} 57. Rc8+ {[%clk 0:00:01]}  Kb2 {[%clk 0:00:26]} 58. Kd2 {[%clk 0:00:01]}  a2 {[%clk 0:00:27]} 59. Rc2+ {[%clk 0:00:01]}  Ka3 {[%clk 0:00:27]} 0-1


[Site "https://www.chess.com"]

[Event "Titled Tuesday Blitz April 19 Late 2022"]
[White "Sliwicki, Damian"]
[Black "Iskusnyh, Sergei"]
[WhiteFideId "1127128"]
[BlackFideId "4120027"]
[WhiteElo "2084"]
[BlackElo "2492"]
[Result "1/2-1/2"]
[Round "07"]
[TimeControl "180+1"]
[Date "2022.04.19"]
[WhiteClock "0:00:11"]
[BlackClock "0:00:10"]

1. e4 {[%clk 0:02:57]}  e6 {[%clk 0:02:57]} 2. d4 {[%clk 0:02:57]}  d5 {[%clk 0:02:57]} 3. Nc3 {[%clk 0:02:57]}  Nf6 {[%clk 0:02:57]} 4. Bg5 {[%clk 0:02:56]}  dxe4 {[%clk 0:02:56]} 5. Nxe4 {[%clk 0:02:47]}  Nbd7 {[%clk 0:02:55]} 6. Qd3 {[%clk 0:02:43]}  h6 {[%clk 0:02:51]} 7. Bxf6 {[%clk 0:02:43]}  Nxf6 {[%clk 0:02:51]} 8. O-O-O {[%clk 0:02:44]}  Nxe4 {[%clk 0:02:40]} 9. Qxe4 {[%clk 0:02:44]}  Qd5 {[%clk 0:02:40]} 10. Qxd5 {[%clk 0:02:21]}  exd5 {[%clk 0:02:41]} 11. Nf3 {[%clk 0:02:20]}  Bd6 {[%clk 0:02:37]} 12. Re1+ {[%clk 0:02:19]}  Be6 {[%clk 0:02:35]} 13. Bd3 {[%clk 0:02:18]}  O-O-O {[%clk 0:02:32]} 14. Ne5 {[%clk 0:02:17]}  Rhe8 {[%clk 0:02:18]} 15. Re2 {[%clk 0:02:07]}  f6 {[%clk 0:02:08]} 16. Nf3 {[%clk 0:01:56]}  Bg4 {[%clk 0:02:01]} 17. Rhe1 {[%clk 0:01:38]}  Rxe2 {[%clk 0:01:59]} 18. Bxe2 {[%clk 0:01:33]}  Re8 {[%clk 0:01:45]} 19. Kd1 {[%clk 0:01:32]}  c6 {[%clk 0:01:37]} 20. h3 {[%clk 0:01:30]}  Bf5 {[%clk 0:01:36]} 21. Nh4 {[%clk 0:01:28]}  Bh7 {[%clk 0:01:34]} 22. Bg4+ {[%clk 0:01:26]}  Kd8 {[%clk 0:01:33]} 23. Rxe8+ {[%clk 0:01:18]}  Kxe8 {[%clk 0:01:34]} 24. Bf5 {[%clk 0:01:07]}  Bg8 {[%clk 0:01:33]} 25. Bg6+ {[%clk 0:00:58]}  Kd8 {[%clk 0:01:32]} 26. Nf5 {[%clk 0:00:57]}  Bf8 {[%clk 0:01:33]} 27. h4 {[%clk 0:00:56]}  Be6 {[%clk 0:01:32]} 28. h5 {[%clk 0:00:56]}  b6 {[%clk 0:01:28]} 29. c3 {[%clk 0:00:55]}  c5 {[%clk 0:01:27]} 30. Ke2 {[%clk 0:00:53]}  Kc7 {[%clk 0:01:27]} 31. Ke3 {[%clk 0:00:52]}  a5 {[%clk 0:01:26]} 32. f4 {[%clk 0:00:51]}  a4 {[%clk 0:01:25]} 33. a3 {[%clk 0:00:48]}  Kc6 {[%clk 0:01:23]} 34. Be8+ {[%clk 0:00:47]}  Kc7 {[%clk 0:01:21]} 35. Bg6 {[%clk 0:00:47]}  Bd7 {[%clk 0:01:04]} 36. g3 {[%clk 0:00:38]}  Kc6 {[%clk 0:01:04]} 37. Kd3 {[%clk 0:00:36]}  Kb5 {[%clk 0:00:57]} 38. Ne3 {[%clk 0:00:34]}  Bh3 {[%clk 0:00:40]} 39. Nxd5 {[%clk 0:00:30]}  Bf1+ {[%clk 0:00:39]} 40. Kc2 {[%clk 0:00:31]}  cxd4 {[%clk 0:00:38]} 41. cxd4 {[%clk 0:00:26]}  Bc4 {[%clk 0:00:31]} 42. Be8+ {[%clk 0:00:21]}  Ka5 {[%clk 0:00:26]} 43. Ne3 {[%clk 0:00:16]}  Be2 {[%clk 0:00:21]} 44. Kc3 {[%clk 0:00:14]}  b5 {[%clk 0:00:21]} 45. Bg6 {[%clk 0:00:08]}  b4+ {[%clk 0:00:20]} 46. axb4+ {[%clk 0:00:08]}  Bxb4+ {[%clk 0:00:20]} 47. Kc2 {[%clk 0:00:09]}  Ba6 {[%clk 0:00:14]} 48. Bd3 {[%clk 0:00:09]}  Bc8 {[%clk 0:00:13]} 49. Nc4+ {[%clk 0:00:09]}  Ka6 {[%clk 0:00:11]} 50. Nd6+ {[%clk 0:00:10]}  Kb6 {[%clk 0:00:11]} 51. Nxc8+ {[%clk 0:00:11]}  Kc7 {[%clk 0:00:11]} 52. Ne7 {[%clk 0:00:12]}  Bxe7 {[%clk 0:00:10]} 53. Bb5 {[%clk 0:00:11]}  a3 {[%clk 0:00:10]} 54. bxa3 {[%clk 0:00:11]}  Bxa3 {[%clk 0:00:10]} 55. Kd3 {[%clk 0:00:12]}  Kd6 {[%clk 0:00:08]} 56. Ke4 {[%clk 0:00:12]}  Bb2 {[%clk 0:00:08]} 57. Bc4 {[%clk 0:00:12]}  Bc3 {[%clk 0:00:08]} 58. Kf5 {[%clk 0:00:12]}  Bxd4 {[%clk 0:00:07]} 59. Kg6 {[%clk 0:00:12]}  f5 {[%clk 0:00:07]} 60. Kxf5 {[%clk 0:00:12]}  Ke7 {[%clk 0:00:07]} 61. Kg6 {[%clk 0:00:12]}  Kf8 {[%clk 0:00:07]} 62. g4 {[%clk 0:00:12]}  Be3 {[%clk 0:00:07]} 63. Kf5 {[%clk 0:00:09]}  Bd2 {[%clk 0:00:08]} 64. g5 {[%clk 0:00:08]}  Bc1 {[%clk 0:00:07]} 65. Bd5 {[%clk 0:00:05]}  Bd2 {[%clk 0:00:07]} 66. Kg6 {[%clk 0:00:05]}  Bxf4 {[%clk 0:00:06]} 67. gxh6 {[%clk 0:00:05]}  Bxh6 {[%clk 0:00:07]} 68. Kh7 {[%clk 0:00:05]}  Ke7 {[%clk 0:00:07]} 69. Kg6 {[%clk 0:00:06]}  Kd6 {[%clk 0:00:07]} 70. Bb3 {[%clk 0:00:07]}  Ke5 {[%clk 0:00:08]} 71. Ba2 {[%clk 0:00:07]}  Kf4 {[%clk 0:00:08]} 72. Bg8 {[%clk 0:00:08]}  Ke5 {[%clk 0:00:08]} 73. Bf7 {[%clk 0:00:09]}  Kd6 {[%clk 0:00:08]} 74. Bg8 {[%clk 0:00:10]}  Ke5 {[%clk 0:00:09]} 75. Bf7 {[%clk 0:00:11]}  Kd6 {[%clk 0:00:10]} 76. Bg8 {[%clk 0:00:11]}  Ke5 {[%clk 0:00:10]} 1/2-1/2


[Site "https://www.chess.com"]